[Event "FIDE Womens Grand Swiss 2021"]
[Site "Riga"]
[Date "2021.10.28"]
[Round "2.25"]
[White "Socko, Monika"]
[Black "February, Jesse Nikki"]
[Result "1-0"]
[ECO "C00"]
[WhiteElo "2397"]
[BlackElo "1857"]
[Annotator "NA"]
[PlyCount "121"]
[EventDate "2021.10.27"]
[EventType "swiss"]
[EventCountry "LAT"]
[Tiebreak "Cut1 Buchholz+Sonneborn-Berger (Swiss)"]
[SourceTitle "playchess.com"]
[Source "ChessBase"]
[SourceQuality "1"]
[TimeControl "40/6000+30:20/3000+30:900+30"]

1. e4 {[%emt 0:10:04]} e6 {[%emt 0:10:24]} 2. d4 {[%emt 0:00:05]} d5 {[%emt 0:
00:10]} 3. Bd3 {[%emt 0:00:05]} dxe4 {[%emt 0:00:32]} 4. Bxe4 {[%emt 0:00:02]}
Nf6 {[%emt 0:00:52]} 5. Bf3 {[%emt 0:00:04]} c5 {[%emt 0:01:41]} 6. Ne2 {
[%emt 0:00:10]} Nc6 {[%emt 0:04:49]} 7. Be3 {[%emt 0:02:03]} cxd4 {[%emt 0:04:
41]} 8. Nxd4 {[%emt 0:00:08]} Nxd4 {[%emt 0:00:48]} 9. Qxd4 {[%emt 0:01:07]}
Qxd4 {[%emt 0:03:39]} 10. Bxd4 {[%emt 0:00:04]} Bd6 {[%emt 0:00:28]} 11. O-O {
[%emt 0:13:41]} O-O {[%emt 0:01:44]} 12. Rd1 {[%emt 0:00:16]} Bc7 {[%emt 0:04:
49]} 13. Nc3 {[%emt 0:02:46]} a6 {[%emt 0:03:19]} 14. Na4 {[%emt 0:03:38]} Bd7
{[%emt 0:03:22]} 15. Nc5 {[%emt 0:00:28]} Bc6 {[%emt 0:06:26]} 16. Bxc6 {
[%emt 0:01:23]} bxc6 {[%emt 0:01:13]} 17. Bxf6 {[%emt 0:00:05]} gxf6 {[%emt 0:
03:35]} 18. Nd7 {[%emt 0:00:09]} Rfd8 {[%emt 0:01:25]} 19. Nxf6+ {[%emt 0:00:
07]} Kg7 {[%emt 0:00:41]} 20. Ne4 {[%emt 0:01:31]} Be5 {[%emt 0:03:41]} 21. c3
{[%emt 0:00:36]} Rab8 {[%emt 0:01:44]} 22. Rxd8 {[%emt 0:01:49]} Rxd8 {[%emt 0:
00:12]} 23. Kf1 {[%emt 0:01:21]} Rd5 {[%emt 0:12:36]} 24. g3 {[%emt 0:03:26]}
f5 {[%emt 0:02:49]} 25. Ng5 {[%emt 0:00:36]} Kf6 {[%emt 0:02:14]} 26. f4 {
[%emt 0:02:59]} h6 {[%emt 0:03:40]} 27. Nf3 {[%emt 0:01:10]} Bc7 {[%emt 0:01:
04]} 28. Ke2 {[%emt 0:05:12]} e5 {[%emt 0:02:11]} 29. fxe5+ {[%emt 0:00:50]}
Bxe5 {[%emt 0:00:15]} 30. Rd1 {[%emt 0:00:21]} Rb5 {[%emt 0:02:00]} 31. b3 {
[%emt 0:00:20]} a5 {[%emt 0:02:49]} 32. Nd4 {[%emt 0:09:23]} Rb6 {[%emt 0:01:
22]} 33. Kd3 {[%emt 0:02:19]} c5 {[%emt 0:01:40]} 34. Ne2 {[%emt 0:00:03]} Rd6+
{[%emt 0:05:10]} 35. Kc2 {[%emt 0:00:03]} Re6 {[%emt 0:00:56]} 36. Rd5 {
[%emt 0:02:11]} Bd6 {[%emt 0:01:08]} 37. Kd3 {[%emt 0:01:03]} Kg5 {[%emt 0:01:
01]} 38. h3 {[%emt 0:09:08]} h5 {[%emt 0:00:50]} 39. a4 {[%emt 0:00:09]} Be7 {
[%emt 0:04:15]} 40. Nf4 {[%emt 0:05:01]} Re4 {[%emt 0:00:41]} 41. Nxh5 {
[%emt 0:51:24]} Re1 {[%emt 0:54:03]} 42. Nf4 {[%emt 0:02:50]} Rb1 {[%emt 0:01:
55]} 43. Kc4 {[%emt 0:00:54]} Rg1 {[%emt 0:00:16]} 44. Ne6+ {[%emt 0:03:25]}
Kf6 {[%emt 0:00:17]} 45. Nxc5 {[%emt 0:00:11]} Rxg3 {[%emt 0:00:17]} 46. Nd3 {
[%emt 0:02:04]} Rxh3 {[%emt 0:00:39]} 47. Rxa5 {[%emt 0:00:25]} f4 {[%emt 0:01:
45]} 48. Rd5 {[%emt 0:01:14]} f3 {[%emt 0:00:32]} 49. Nf2 {[%emt 0:03:37]} Rh8
{[%emt 0:01:43]} 50. Rd3 {[%emt 0:01:43]} Rc8+ {[%emt 0:00:47]} 51. Kd5 {
[%emt 0:00:28]} Rd8+ {[%emt 0:03:09]} 52. Ke4 {[%emt 0:00:36]} Rb8 {[%emt 0:00:
17]} 53. Rxf3+ {[%emt 0:01:48]} Ke6 {[%emt 0:00:07]} 54. c4 {[%emt 0:00:07]}
Bb4 {[%emt 0:00:13]} 55. Nd3 {[%emt 0:00:26]} Ba5 {[%emt 0:02:16]} 56. Rf5 {
[%emt 0:01:08]} Bc7 {[%emt 0:00:34]} 57. Rh5 {[%emt 0:01:07]} Bd6 {[%emt 0:01:
11]} 58. c5 {[%emt 0:00:20]} Be7 {[%emt 0:00:36]} 59. b4 {[%emt 0:01:08]} Ra8 {
[%emt 0:00:31]} 60. Rh6+ {[%emt 0:01:03]} Kd7 {[%emt 0:00:09]} 61. Ne5+ {
[%emt 0:15:59]} 1-0

[Event "FIDE Womens Grand Swiss 2021"]
[Site "Riga"]
[Date "2021.10.29"]
[Round "3.3"]
[White "Batsiashvili, Nino"]
[Black "Zhu, Jiner"]
[Result "1/2-1/2"]
[ECO "D40"]
[WhiteElo "2484"]
[BlackElo "2455"]
[Annotator "ChessBase"]
[PlyCount "125"]
[EventDate "2021.10.27"]
[EventType "swiss"]
[EventCountry "LAT"]
[Tiebreak "Cut1 Buchholz+Sonneborn-Berger (Swiss)"]
[SourceTitle "playchess.com"]
[Source "ChessBase"]
[SourceQuality "1"]
[TimeControl "40/6000+30:20/3000+30:900+30"]

1. d4 {[%emt 0:10:03]} Nf6 {[%emt 0:10:08]} 2. c4 {[%emt 0:00:04]} e6 {[%emt 0:
00:06]} 3. Nf3 {[%emt 0:00:13]} d5 {[%emt 0:00:11]} 4. Nc3 {[%emt 0:00:05]} c5
{[%emt 0:00:17]} 5. e3 {[%emt 0:01:29]} Nc6 {[%emt 0:00:14]} 6. a3 {[%emt 0:01:
07]} a6 {[%emt 0:00:33]} 7. b3 {[%emt 0:05:44]} Be7 {[%emt 0:06:50]} 8. Bb2 {
[%emt 0:02:59]} O-O {[%emt 0:01:15]} 9. Bd3 {[%emt 0:00:21]} cxd4 {[%emt 0:02:
24]} 10. exd4 {[%emt 0:00:05]} b6 {[%emt 0:00:34]} 11. O-O {[%emt 0:00:34]} Bb7
{[%emt 0:00:18]} 12. Qe2 {[%emt 0:07:48]} Na5 {[%emt 0:10:46]} 13. cxd5 {
[%emt 0:13:56]} Nxd5 {[%emt 0:03:01]} 14. Nxd5 {[%emt 0:04:08]} Qxd5 {[%emt 0:
04:00]} 15. b4 {[%emt 0:11:02]} Nc6 {[%emt 0:04:10]} 16. Rad1 {[%emt 0:00:56]}
Bd6 {[%emt 0:02:10]} 17. Be4 {[%emt 0:03:18]} Qh5 {[%emt 0:00:17]} 18. h3 {
[%emt 0:04:13]} Rfe8 {[%emt 0:13:01]} 19. Qe3 {[%emt 0:02:28]} Rab8 {[%emt 0:
08:18]} 20. d5 {[%emt 0:08:34]} exd5 {[%emt 0:02:22]} 21. Rxd5 {[%emt 0:00:31]}
Qxd5 {[%emt 0:01:23]} 22. Bxd5 {[%emt 0:00:11]} Rxe3 {[%emt 0:00:07]} 23. fxe3
{[%emt 0:00:02]} Nd8 {[%emt 0:09:29]} 24. Bb3 {[%emt 0:02:06]} Bxf3 {[%emt 0:
10:54]} 25. gxf3 {[%emt 0:00:39]} Kf8 {[%emt 0:00:17]} 26. Rd1 {[%emt 0:00:27]}
Be7 {[%emt 0:02:03]} 27. Rd7 {[%emt 0:04:24]} Rb7 {[%emt 0:00:44]} 28. Rxb7 {
[%emt 0:04:07]} Nxb7 {[%emt 0:00:05]} 29. Bd4 {[%emt 0:00:51]} Bd8 {[%emt 0:01:
49]} 30. Kf2 {[%emt 0:00:16]} f6 {[%emt 0:01:15]} 31. e4 {[%emt 0:03:02]} Bc7 {
[%emt 0:01:13]} 32. Ke3 {[%emt 0:00:27]} Ke7 {[%emt 0:00:15]} 33. Bc4 {[%emt 0:
02:17]} a5 {[%emt 0:02:59]} 34. bxa5 {[%emt 0:06:22]} Nxa5 {[%emt 0:01:55]} 35.
Bd5 {[%emt 0:00:29]} Kd7 {[%emt 0:00:13]} 36. f4 {[%emt 0:03:46]} Nc6 {[%emt 0:
00:28]} 37. Bb2 {[%emt 0:00:10]} g5 {[%emt 0:02:54]} 38. Bxc6+ {[%emt 0:07:09]}
Kxc6 {[%emt 0:00:06]} 39. f5 {[%emt 0:01:12]} Bd8 {[%emt 0:00:13]} 40. e5 {
[%emt 0:00:45]} fxe5 {[%emt 0:01:50]} 41. Ke4 {[%emt 0:51:13]} h5 {[%emt 0:50:
49]} 42. Bxe5 {[%emt 0:00:24]} g4 {[%emt 0:01:01]} 43. hxg4 {[%emt 0:00:00]}
hxg4 {[%emt 0:00:00]} 44. Kf4 {[%emt 0:00:00]} Kd5 {[%emt 0:00:00]} 45. Bc3 {
[%emt 0:00:00]} b5 {[%emt 0:00:00]} 46. Kxg4 {[%emt 0:00:00]} Ke4 {[%emt 0:00:
00]} 47. Bd2 {[%emt 0:00:00]} Be7 {[%emt 0:00:00]} 48. Bb4 {[%emt 0:00:00]} Bf6
{[%emt 0:00:00]} 49. Bf8 {[%emt 0:00:00]} Bd8 {[%emt 0:00:00]} 50. Bg7 {
[%emt 0:00:00]} Be7 {[%emt 0:00:00]} 51. Bb2 {[%emt 0:00:00]} Bd8 {[%emt 0:00:
00]} 52. Bc3 {[%emt 0:00:00]} Be7 {[%emt 0:00:00]} 53. Bb4 {[%emt 0:00:00]} Bf6
{[%emt 0:00:00]} 54. Bd2 {[%emt 0:00:00]} Be7 {[%emt 0:00:00]} 55. Bc1 {
[%emt 0:00:00]} Ke5 {[%emt 0:00:00]} 56. Bb2+ {[%emt 0:00:00]} Ke4 {[%emt 0:00:
00]} 57. f6 {[%emt 0:00:00]} Bxf6 {[%emt 0:00:00]} 58. Bxf6 {[%emt 0:00:00]}
Kd5 {[%emt 0:00:00]} 59. Kf5 {[%emt 0:00:00]} Kc6 {[%emt 0:00:00]} 60. Ke6 {
[%emt 0:00:00]} Kb7 {[%emt 0:00:00]} 61. Kd6 {[%emt 0:08:06]} Ka8 {[%emt 0:00:
00]} 62. Kc6 {[%emt 0:00:08]} Ka7 {[%emt 0:00:00]} 63. Kxb5 {[%emt 0:00:07]}
1/2-1/2

[Event "FIDE Womens Grand Swiss 2021"]
[Site "Riga"]
[Date "2021.10.29"]
[Round "3.7"]
[White "Badelka, Olga"]
[Black "Muzychuk, Mariya"]
[Result "1/2-1/2"]
[ECO "A07"]
[WhiteElo "2438"]
[BlackElo "2536"]
[Annotator "ChessBase"]
[PlyCount "86"]
[EventDate "2021.10.27"]
[EventType "swiss"]
[EventCountry "LAT"]
[Tiebreak "Cut1 Buchholz+Sonneborn-Berger (Swiss)"]
[SourceTitle "playchess.com"]
[Source "ChessBase"]
[SourceQuality "1"]
[TimeControl "40/6000+30:20/3000+30:900+30"]

1. Nf3 {[%emt 0:10:05]} d5 {[%emt 0:10:16]} 2. g3 {[%emt 0:00:30]} Nf6 {
[%emt 0:00:26]} 3. Bg2 {[%emt 0:00:17]} c6 {[%emt 0:00:13]} 4. O-O {[%emt 0:01:
26]} Bg4 {[%emt 0:00:40]} 5. h3 {[%emt 0:01:16]} Bh5 {[%emt 0:00:55]} 6. c4 {
[%emt 0:01:50]} e6 {[%emt 0:00:30]} 7. d4 {[%emt 0:02:18]} Nbd7 {[%emt 0:09:27]
} 8. cxd5 {[%emt 0:00:21]} exd5 {[%emt 0:00:18]} 9. Nh4 {[%emt 0:00:11]} Ne4 {
[%emt 0:08:28]} 10. Nc3 {[%emt 0:07:46]} Ndf6 {[%emt 0:02:42]} 11. Qd3 {
[%emt 0:05:35]} Qe7 {[%emt 0:06:50]} 12. Nf5 {[%emt 0:11:40]} Qe6 {[%emt 0:00:
42]} 13. f3 {[%emt 0:00:09]} Nxc3 {[%emt 0:04:28]} 14. bxc3 {[%emt 0:00:05]}
Bg6 {[%emt 0:02:52]} 15. e4 {[%emt 0:00:44]} O-O-O {[%emt 0:00:46]} 16. g4 {
[%emt 0:08:19]} h5 {[%emt 0:08:28]} 17. e5 {[%emt 0:17:21]} Ng8 {[%emt 0:06:02]
} 18. Bg5 {[%emt 0:00:10]} f6 {[%emt 0:17:36]} 19. exf6 {[%emt 0:04:20]} gxf6 {
[%emt 0:01:48]} 20. Rae1 {[%emt 0:01:51]} Qd7 {[%emt 0:00:33]} 21. Bf4 {
[%emt 0:00:32]} Rh7 {[%emt 0:00:55]} 22. h4 {[%emt 0:05:24]} hxg4 {[%emt 0:10:
47]} 23. fxg4 {[%emt 0:00:04]} Bxf5 {[%emt 0:04:28]} 24. gxf5 {[%emt 0:00:05]}
Rxh4 {[%emt 0:00:11]} 25. Qg3 {[%emt 0:01:40]} Rh8 {[%emt 0:00:14]} 26. Re6 {
[%emt 0:02:23]} Bh6 {[%emt 0:01:33]} 27. Bb8 {[%emt 0:05:14]} Bg5 {[%emt 0:04:
12]} 28. Bxa7 {[%emt 0:07:14]} Qc7 {[%emt 0:00:15]} 29. Qxc7+ {[%emt 0:00:21]}
Kxc7 {[%emt 0:00:02]} 30. Rb1 {[%emt 0:00:13]} Ra8 {[%emt 0:03:50]} 31. Bb6+ {
[%emt 0:00:19]} Kd7 {[%emt 0:00:04]} 32. Bc5 {[%emt 0:01:35]} b5 {[%emt 0:00:
27]} 33. c4 {[%emt 0:02:43]} Nh6 {[%emt 0:00:29]} 34. Rd6+ {[%emt 0:10:10]} Kc7
{[%emt 0:00:03]} 35. cxb5 {[%emt 0:02:06]} cxb5 {[%emt 0:00:24]} 36. Bxd5 {
[%emt 0:00:21]} Nxf5 {[%emt 0:00:59]} 37. Rc6+ {[%emt 0:00:22]} Kd7 {[%emt 0:
00:27]} 38. Rxb5 {[%emt 0:01:10]} Rab8 {[%emt 0:05:22]} 39. Rcb6 {[%emt 0:00:
18]} Rxb6 {[%emt 0:00:21]} 40. Rxb6 {[%emt 0:00:03]} Be3+ {[%emt 0:00:13]} 41.
Kg2 {[%emt 0:25:17]} Bxd4 {[%emt 0:22:56]} 42. Rb7+ {[%emt 0:10:37]} Kc8 {
[%emt 0:00:37]} 43. Bxd4 {[%emt 0:00:49]} Rd8 {[%emt 0:06:02]} 1/2-1/2

[Event "FIDE Womens Grand Swiss 2021"]
[Site "Riga"]
[Date "2021.10.29"]
[Round "3.8"]
[White "Abdumalik, Zhansaya"]
[Black "Buksa, Nataliya"]
[Result "1-0"]
[ECO "B31"]
[WhiteElo "2507"]
[BlackElo "2409"]
[Annotator "ChessBase"]
[PlyCount "109"]
[EventDate "2021.10.27"]
[EventType "swiss"]
[EventCountry "LAT"]
[Tiebreak "Cut1 Buchholz+Sonneborn-Berger (Swiss)"]
[SourceTitle "playchess.com"]
[Source "ChessBase"]
[SourceQuality "1"]
[TimeControl "40/6000+30:20/3000+30:900+30"]

1. e4 {[%emt 0:10:04]} c5 {[%emt 0:10:50]} 2. Nf3 {[%emt 0:00:07]} Nc6 {
[%emt 0:00:19]} 3. Bb5 {[%emt 0:00:09]} g6 {[%emt 0:00:06]} 4. O-O {[%emt 0:00:
11]} Bg7 {[%emt 0:00:03]} 5. Re1 {[%emt 0:00:11]} e5 {[%emt 0:00:06]} 6. b4 {
[%emt 0:00:41]} Nxb4 {[%emt 0:00:05]} 7. Bb2 {[%emt 0:00:27]} a6 {[%emt 0:00:
03]} 8. a3 {[%emt 0:00:22]} axb5 {[%emt 0:00:04]} 9. axb4 {[%emt 0:00:06]} Rxa1
{[%emt 0:00:04]} 10. Bxa1 {[%emt 0:00:10]} d6 {[%emt 0:00:26]} 11. bxc5 {
[%emt 0:00:18]} Ne7 {[%emt 0:00:12]} 12. Qe2 {[%emt 0:00:15]} b4 {[%emt 0:10:
01]} 13. Qc4 {[%emt 0:00:37]} Qa5 {[%emt 0:06:51]} 14. cxd6 {[%emt 0:00:07]}
Nc6 {[%emt 0:01:03]} 15. d4 {[%emt 0:06:09]} Qxa1 {[%emt 0:11:22]} 16. d5 {
[%emt 0:00:11]} Na7 {[%emt 0:00:03]} 17. Qc7 {[%emt 0:04:31]} Bd7 {[%emt 0:11:
23]} 18. Qxb7 {[%emt 0:11:06]} Nc8 {[%emt 0:24:37]} 19. Qxb4 {[%emt 0:07:08]}
Qa6 {[%emt 0:00:03]} 20. c4 {[%emt 0:02:01]} Nxd6 {[%emt 0:03:48]} 21. c5 {
[%emt 0:04:00]} Nc8 {[%emt 0:01:56]} 22. c6 {[%emt 0:05:00]} Bg4 {[%emt 0:00:
04]} 23. h3 {[%emt 0:01:58]} Bxf3 {[%emt 0:01:21]} 24. Qb7 {[%emt 0:00:16]} Qa7
{[%emt 0:08:16]} 25. Qxc8+ {[%emt 0:24:42]} Ke7 {[%emt 0:00:02]} 26. Qb7+ {
[%emt 0:00:08]} Qxb7 {[%emt 0:00:04]} 27. cxb7 {[%emt 0:00:05]} Bxg2 {[%emt 0:
04:48]} 28. Kxg2 {[%emt 0:00:18]} Rb8 {[%emt 0:00:03]} 29. Nd2 {[%emt 0:04:00]}
Rxb7 {[%emt 0:00:14]} 30. Ra1 {[%emt 0:01:15]} f5 {[%emt 0:09:23]} 31. Ra6 {
[%emt 0:02:59]} Kd7 {[%emt 0:03:00]} 32. Nc4 {[%emt 0:05:11]} Bh8 {[%emt 0:03:
37]} 33. exf5 {[%emt 0:01:11]} gxf5 {[%emt 0:00:05]} 34. Nd6 {[%emt 0:00:09]}
Rc7 {[%emt 0:01:48]} 35. Nxf5 {[%emt 0:00:15]} e4 {[%emt 0:00:20]} 36. Rd6+ {
[%emt 0:00:25]} Kc8 {[%emt 0:01:01]} 37. Re6 {[%emt 0:00:14]} Kd8 {[%emt 0:00:
03]} 38. Rxe4 {[%emt 0:01:43]} Rd7 {[%emt 0:00:15]} 39. Ne3 {[%emt 0:01:00]}
Bf6 {[%emt 0:00:06]} 40. f4 {[%emt 0:00:19]} Ra7 {[%emt 0:01:34]} 41. Kf3 {
[%emt 0:50:32]} Ra3 {[%emt 0:23:56]} 42. Kg4 {[%emt 0:00:00]} Rd3 {[%emt 0:00:
04]} 43. h4 {[%emt 0:00:00]} Bc3 {[%emt 0:03:49]} 44. Re6 {[%emt 0:00:00]} Bd2
{[%emt 0:03:30]} 45. Rd6+ {[%emt 0:00:00]} Ke8 {[%emt 0:03:54]} 46. Nc4 {
[%emt 0:00:00]} Bb4 {[%emt 0:05:54]} 47. Rb6 {[%emt 0:00:00]} Bc5 {[%emt 0:00:
03]} 48. Rb8+ {[%emt 0:00:00]} Ke7 {[%emt 0:00:07]} 49. Rb7+ {[%emt 0:00:00]}
Ke8 {[%emt 0:02:16]} 50. Rxh7 {[%emt 0:00:00]} Rd4 {[%emt 0:00:23]} 51. Ne5 {
[%emt 0:00:00]} Rxd5 {[%emt 0:00:18]} 52. Kf5 {[%emt 0:00:00]} Rd1 {[%emt 0:00:
37]} 53. h5 {[%emt 0:00:02]} Kf8 {[%emt 0:01:19]} 54. h6 {[%emt 0:01:32]} Bd4 {
[%emt 0:00:58]} 55. Rd7 {[%emt 0:01:18]} 1-0

[Event "FIDE Womens Grand Swiss 2021"]
[Site "Riga"]
[Date "2021.10.29"]
[Round "3.13"]
[White "Assaubayeva, Bibisara"]
[Black "Munguntuul, Batkhuyag"]
[Result "1-0"]
[ECO "D12"]
[WhiteElo "2400"]
[BlackElo "2433"]
[Annotator "NA"]
[PlyCount "87"]
[EventDate "2021.10.27"]
[EventType "swiss"]
[EventCountry "LAT"]
[Tiebreak "Cut1 Buchholz+Sonneborn-Berger (Swiss)"]
[SourceTitle "playchess.com"]
[Source "ChessBase"]
[SourceQuality "1"]
[TimeControl "40/6000+30:20/3000+30:900+30"]

1. d4 {[%emt 0:10:12]} d5 {[%emt 0:10:07]} 2. c4 {[%emt 0:00:04]} c6 {[%emt 0:
00:11]} 3. Nf3 {[%emt 0:00:06]} Nf6 {[%emt 0:00:04]} 4. e3 {[%emt 0:00:15]} Bf5
{[%emt 0:00:07]} 5. Nc3 {[%emt 0:00:07]} e6 {[%emt 0:00:04]} 6. Nh4 {[%emt 0:
00:07]} Be4 {[%emt 0:00:03]} 7. f3 {[%emt 0:00:08]} Bg6 {[%emt 0:00:02]} 8. Qb3
{[%emt 0:00:09]} Qc7 {[%emt 0:00:04]} 9. Bd2 {[%emt 0:00:09]} Be7 {[%emt 0:00:
08]} 10. Nxg6 {[%emt 0:00:05]} hxg6 {[%emt 0:00:10]} 11. O-O-O {[%emt 0:01:42]}
dxc4 {[%emt 0:04:27]} 12. Bxc4 {[%emt 0:01:13]} b5 {[%emt 0:00:13]} 13. Be2 {
[%emt 0:00:10]} a6 {[%emt 0:00:17]} 14. Ne4 {[%emt 0:00:11]} Nbd7 {[%emt 0:15:
53]} 15. Kb1 {[%emt 0:02:32]} c5 {[%emt 0:08:10]} 16. Nxc5 {[%emt 0:00:13]}
Nxc5 {[%emt 0:00:20]} 17. dxc5 {[%emt 0:00:02]} Qxc5 {[%emt 0:05:30]} 18. h4 {
[%emt 0:08:39]} O-O {[%emt 0:03:49]} 19. g4 {[%emt 0:04:03]} Rfd8 {[%emt 0:06:
26]} 20. e4 {[%emt 0:06:12]} Qf2 {[%emt 0:14:37]} 21. Qe3 {[%emt 0:04:21]} Bc5
{[%emt 0:00:20]} 22. Qxf2 {[%emt 0:00:46]} Bxf2 {[%emt 0:00:04]} 23. h5 {
[%emt 0:05:05]} gxh5 $14 {[%emt 0:04:43]} 24. g5 {[%emt 0:13:36]} Nd7 {[%emt 0:
07:47]} 25. Rxh5 {[%emt 0:01:38]} e5 {[%emt 0:04:17]} 26. Bc3 {[%emt 0:08:16]}
Be3 {[%emt 0:06:51]} 27. Rd3 {[%emt 0:04:14]} Bc5 {[%emt 0:05:08]} 28. f4 {
[%emt 0:12:22]} b4 {[%emt 0:03:55]} 29. Bd2 {[%emt 0:03:19]} g6 {[%emt 0:03:51]
} 30. Rhh3 {[%emt 0:01:27]} a5 {[%emt 0:03:40]} 31. f5 {[%emt 0:05:11]} Nb6 {
[%emt 0:00:23]} 32. a3 {[%emt 0:09:50]} Rxd3 {[%emt 0:02:58]} 33. Rxd3 {
[%emt 0:00:06]} Rb8 {[%emt 0:01:32]} 34. axb4 {[%emt 0:00:35]} axb4 {[%emt 0:
00:14]} 35. f6 {[%emt 0:02:09]} Bd4 {[%emt 0:00:44]} 36. Rh3 {[%emt 0:04:13]}
Na4 {[%emt 0:00:42]} 37. Bc1 {[%emt 0:01:06]} Nc5 {[%emt 0:00:10]} 38. Bc4 {
[%emt 0:00:21]} Nxe4 {[%emt 0:00:27]} 39. Rh6 {[%emt 0:00:12]} Nd6 {[%emt 0:00:
47]} 40. Rxg6+ {[%emt 0:00:20]} Kf8 {[%emt 0:00:04]} 41. Rh6 {[%emt 0:50:07]}
Ke8 {[%emt 0:29:32]} 42. Rh8+ {[%emt 0:00:00]} Kd7 {[%emt 0:00:20]} 43. Rxb8 {
[%emt 0:00:00]} Nxc4 {[%emt 0:00:02]} 44. g6 {[%emt 0:00:00]} 1-0

[Event "FIDE Womens Grand Swiss 2021"]
[Site "Riga"]
[Date "2021.10.29"]
[Round "3.14"]
[White "Zawadzka, Jolanta"]
[Black "Socko, Monika"]
[Result "1-0"]
[ECO "C15"]
[WhiteElo "2428"]
[BlackElo "2397"]
[Annotator "NA"]
[PlyCount "71"]
[EventDate "2021.10.27"]
[EventType "swiss"]
[EventCountry "LAT"]
[Tiebreak "Cut1 Buchholz+Sonneborn-Berger (Swiss)"]
[SourceTitle "playchess.com"]
[Source "ChessBase"]
[SourceQuality "1"]
[TimeControl "40/6000+30:20/3000+30:900+30"]

1. e4 {[%emt 0:10:02]} e6 {[%emt 0:10:04]} 2. d4 {[%emt 0:00:05]} d5 {[%emt 0:
00:04]} 3. Nc3 {[%emt 0:00:07]} Bb4 {[%emt 0:00:04]} 4. exd5 {[%emt 0:00:12]}
exd5 {[%emt 0:01:28]} 5. Bd3 {[%emt 0:00:08]} Nc6 {[%emt 0:02:26]} 6. Nf3 {
[%emt 0:00:21]} Bg4 {[%emt 0:02:41]} 7. O-O {[%emt 0:00:47]} Nge7 {[%emt 0:01:
24]} 8. h3 {[%emt 0:00:36]} Bh5 {[%emt 0:03:12]} 9. a3 {[%emt 0:00:15]} Bxc3 {
[%emt 0:04:18]} 10. bxc3 {[%emt 0:00:06]} Qd7 {[%emt 0:01:18]} 11. a4 {[%emt 0:
00:29]} h6 {[%emt 0:08:39]} 12. Re1 {[%emt 0:06:35]} O-O-O {[%emt 0:16:03]} 13.
Bb5 {[%emt 0:13:46]} f6 {[%emt 0:10:46]} 14. Ba3 {[%emt 0:03:41]} Bxf3 {
[%emt 0:12:29]} (14... Rde8 $16) 15. Qxf3 $18 {[%emt 0:01:09]} Rhe8 {[%emt 0:
00:26]} 16. Rxe7 {[%emt 0:10:52]} Rxe7 {[%emt 0:00:05]} 17. Bxc6 {[%emt 0:00:
05]} bxc6 {[%emt 0:00:13]} 18. Qd3 {[%emt 0:02:41]} Rde8 {[%emt 0:00:59]} 19.
Qa6+ {[%emt 0:00:24]} Kd8 {[%emt 0:00:00]} 20. Bxe7+ {[%emt 0:00:40]} Rxe7 {
[%emt 0:01:51]} 21. Qxa7 {[%emt 0:01:43]} Qf5 {[%emt 0:02:59]} 22. a5 {[%emt 0:
06:43]} Qxc2 {[%emt 0:01:49]} 23. Qb8+ {[%emt 0:13:10]} Kd7 {[%emt 0:00:03]}
24. a6 {[%emt 0:00:41]} Qxc3 {[%emt 0:16:09]} 25. Qb1 {[%emt 0:00:14]} Re8 {
[%emt 0:00:21]} 26. a7 {[%emt 0:01:34]} Ra8 {[%emt 0:00:05]} 27. Ra4 {[%emt 0:
05:55]} Qd2 {[%emt 0:01:48]} 28. g3 {[%emt 0:01:16]} Qe2 {[%emt 0:03:14]} 29.
Ra3 {[%emt 0:03:02]} Kc8 {[%emt 0:04:41]} 30. Re3 {[%emt 0:04:13]} Qh5 {
[%emt 0:00:04]} 31. Qb4 {[%emt 0:03:50]} Qf7 {[%emt 0:05:03]} 32. Rb3 {[%emt 0:
01:03]} Kd7 {[%emt 0:00:33]} 33. Qb8 {[%emt 0:00:49]} Qh5 {[%emt 0:00:03]} 34.
Qxa8 {[%emt 0:02:18]} Qd1+ {[%emt 0:00:06]} 35. Kg2 {[%emt 0:00:05]} Qxb3 {
[%emt 0:00:11]} 36. Qf8 {[%emt 0:00:24]} 1-0